Workbook

Sheet Input Sheet
A1: Data Input Sheet
A3: Purchase Price | B3: $1,777,000
A4: Down Payment | B4: $0
A5: Amount of Purchase Price Financed | B5: =B3-B4 -> $1,777,000
A6: Guaranteed Interest Rate | B6: 5.900%
A7: Guaranteed Terms | B7: 30
A8: Bank Beg. Farmer/SDA Down Payment Terms | B8: 30
A9: FSA Beg. Farmer/SDA Down Payment Terms | B9: 20
A10: FSA D-FO Interest Rate | B10: 4.000%
A11: FSA D-FO Terms | B11: 25
A12: Particpation Lender Portion Amount | B12: $1,176,000 | C12: =IF(AND(B5>0,B12=0),"Warning! Must Enter Value",IF(AND(B5>600000,B12<B5-600000),"Warning FSA loan Amount Exceeded",IF(B12>B5,"Warning! Value Exceeds Amount Financed",""))) -> Warning FSA loan Amount Exceeded
A13: Land Price/Acre | B13: $8,000
A16: Shared Lien Postion RFA/Unguaranteed Portion | B16: $577,000
A17: Shared Lien Postion Guaranteed Amount | B17: $600,000 | C17: =IF(AND(B18=600000,B17>1150000),"Warning! FSA Loan Amount Exceeded", IF(B17+B18>1750000,"Warning! FSA Loan Amount Exceeded","")) -> 
A18: Shared Lien Position FSA Amount | B18: $600,000 | C18: =IF(B18>600000,"Warning! FSA Loan Amount Exceeded","") -> 
B19: =SUM(B16:B18) -> $1,777,000 | C19: =IF(OR(B16+B17+B18>B5, B16+B17+B18<B5),"Warning! Total Does Not Match Amount Financed","") -> 
A20: Shared Lien Postion RFA/Unguaranteed Interest Rate | B20: 0.000%
A21: Shared Lien Postion RFA/Unguaranteed Terms | B21: 0
A24: Note: When a unguaranteed real estate loan and guaranteed real estate loan share the same
A25: lien position the 85% loan to value ratio does not apply to junior liens for guaranteed real estate loans.
A27: All three Shared Position amounts must equal Amount of Purchase Price Financed.
A29: The Shared Lien Option can be used to calculate payment if Rural Finance Authority Loan programs are being used.
A30: The Rural Finance portion may be guaranteed or unguaranteed depending Rural Fianace Authority Loan program and subject to FSA loan limits.
A32: Failure to correct any displaying "Warning Messages" will result in the option being blacked out.
A34: Disclaimer: This calculator is only a guide. Accuracy of the results are not guaranteed and are subject to the rules and regulations of the Farm Service Agency
A35: Version 6.5 last updated 11/8/19

Sheet Real Estate Financing Calc.
B1: GUARANTEE FARM OWNERSHIP LOANS | C1: BEG. FARMER/ SDA DOWN PAYMENT | E1: DIRECT FARM OWNERSHIP | F1: 50/50 JOINT FINANCING | H1: PARTICPATION FINANCING | J1: SHARED LIEN BANK/GUAR/DIRECT
A4: PURCHASE PRICE
A5: ='Input Sheet'!B3 -> $1,777,000 | B5: ='Input Sheet'!B3 -> $1,777,000 | C5: ='Input Sheet'!B3 -> $1,777,000 | E5: ='Input Sheet'!B3 -> $1,777,000 | F5: ='Input Sheet'!B3 -> $1,777,000 | H5: ='Input Sheet'!B3 -> $1,777,000 | J5: ='Input Sheet'!B3 -> $1,777,000
A6: DOWN PAYMENT | B6: =B7/B5 -> 0% | C6: =C7/C5 -> 5% | E6: =E7/E5 -> 0% | F6: =F7/F5 -> 0% | H6: =H7/H5 -> 0% | J6: =J7/J5 -> 0%
A7: ='Input Sheet'!B4 -> $0 | B7: =A7 -> $0 | C7: =IF(A7>A5*0.05,A7,A5*0.05) -> $88,850 | E7: =A7 -> $0 | F7: =A7 -> $0 | H7: ='Input Sheet'!B4 -> $0 | J7: =A7 -> $0
A8: AMOUNT OF PURCHASE PRICE FINANCED | B8: ='Input Sheet'!B5 -> $1,777,000 | C8: =C5-C7 -> $1,688,150 | E8: ='Input Sheet'!B5 -> $1,777,000 | F8: ='Input Sheet'!B5 -> $1,777,000 | H8: =H5-H7 -> $1,777,000 | J8: =J5-J7 -> $1,777,000
A9: TERMS
A10: BANK LOAN AMOUNT YEARS INTEREST RATE | B10: N/A | C10: Bank | D10: =C11/C5 -> 0% | E10: N/A | F10: See Note | H10: See Note | J10: Bank | K10: =J11/J8 -> 32%
C11: =IF(C8>1750000,C8-1750000,0) -> $0 | J11: ='Input Sheet'!B16 -> $577,000
C12: ='Input Sheet'!B8 -> 30 | J12: =IF('Input Sheet'!B21=0,J16,'Input Sheet'!B21) -> 30
C13: ='Input Sheet'!B20 -> 0.00% | J13: =IF('Input Sheet'!B20 = 0,J17,'Input Sheet'!B20) -> 5.900%
A14: BANK GUAR. LOAN AMOUNT YEARS INTEREST RATE | B14: Bank (100%) | C14: Bank | D14: =C15/C5 -> 78% | E14: N/A | F14: Bank | G14: =F15/F8 -> 50% | H14: Bank | I14: =H15/H8 -> 66% | J14: Bank | K14: =J15/J8 -> 34%
B15: =B8 -> $1,777,000 | C15: =IF(AND(C5>667000,C5>1869473,C8>1776000),1475850,IF(AND(C5>667000,C5<=1837500),C8-300150,IF(AND(C5>1837500,C8<=1776000),C8-300150,IF(AND(C5<=667000, C7=C5*0.05), C5*0.5,IF(AND(C5<=667000,C7>C5*0.05),C5-(C5*0.45)-C7))))) -> $1,388,000 | F15: =F8/2 -> $888,500 | H15: ='Input Sheet'!B12 -> $1,176,000 | J15: ='Input Sheet'!B17 -> $600,000
B16: ='Input Sheet'!B7 -> 30 | C16: ='Input Sheet'!B8 -> 30 | F16: =B16 -> 30 | H16: =B16 -> 30 | J16: =H16 -> 30
B17: ='Input Sheet'!B6 -> 5.900% | C17: =B17 -> 5.90% | F17: =B17 -> 5.900% | H17: =B17 -> 5.900% | J17: =B17 -> 5.900%
A18: FSA LOAN AMOUNT YEARS INTEREST RATE | B18: N/A | C18: FSA | D18: =C19/C5 -> 17% | E18: FSA (100%) | F18: FSA | G18: =F19/F8 -> 50% | H18: FSA | I18: =H19/H8 -> 34% | J18: FSA | K18: =J19/J8 -> 34%
C19: =IF(C5>=667000,300150,C5*0.45) -> $300,150 | E19: =E8 -> $1,777,000 | F19: =F8/2 -> $888,500 | H19: =H8-H15 -> $601,000 | J19: ='Input Sheet'!B18 -> $600,000
C20: ='Input Sheet'!B9 -> 20 | E20: ='Input Sheet'!B11 -> 25 | F20: ='Input Sheet'!B11 -> 25 | H20: ='Input Sheet'!B11 -> 25 | J20: =H20 -> 25
C21: =IF('Input Sheet'!B10-0.04>0.015,'Input Sheet'!B10-0.04,0.015) -> 1.50% | E21: ='Input Sheet'!B10 -> 4.000% | F21: =IF('Input Sheet'!B10<=0.045,0.025,'Input Sheet'!B10-0.02) -> 2.500% | H21: =IF(AND(I18>0.5,'Input Sheet'!B10>0.045),'Input Sheet'!B10,IF(AND(I18>0.5,'Input Sheet'!B10<=0.045),'Input Sheet'!B10,IF(AND(I18<=0.5,'Input Sheet'!B10<=0.045),0.025,IF(AND(I18<=0.5,'Input Sheet'!B10>0.045),'Input Sheet'!B10-0.02)))) -> 2.500% | J21: =IF(AND(K18>0.5,'Input Sheet'!B10>0.045),'Input Sheet'!B10,IF(AND(K18>0.5,'Input Sheet'!B10<=0.045),'Input Sheet'!B10,IF(AND(K18<=0.5,'Input Sheet'!B10<=0.045),0.025,IF(AND(K18<=0.5,'Input Sheet'!B10>0.045),'Input Sheet'!B10-0.02)))) -> 2.500%
A22: TOTAL PAYMENTS
B23: =PMT(B17,B16,B15)*-1 -> $127,719 | C23: =PMT(C17,C16,C15)*-1+PMT(C21,C20,C19)*-1+PMT(C13,C12,C11)*-1 -> $117,243 | E23: =PMT(E21,E20,E19)*-1 -> $113,749 | F23: =PMT(F17,F16,F15)*-1+PMT(F21,F20,F19)*-1 -> $112,084 | H23: =PMT(H17,H16,H15)*-1+PMT(H21,H20,H19)*-1 -> $117,143 | J23: =PMT(J13,J12,J11)*-1+PMT(J17,J16,J15)*-1+PMT(J21,J20,J19)*-1 -> $117,160
A24: COST/ACRE
A25: =A5 -> $1,777,000 | B25: G-F0 | C25: BF/SDA DP-FO | E25: D-FO | F25: JOINT | H25: PART | J25: SHARED
A26: WILL BUY @
A27: ='Input Sheet'!B13 -> $8,000 | B27: =B23/A28 -> $575 | C27: =C23/A28 -> $528 | E27: =E23/A28 -> $512 | F27: =F23/A28 -> $505 | H27: =H23/A28 -> $527 | J27: =J23/A28 -> $527
A28: =A25/A27 -> 222
A29: =A27+200 -> $8,200 | B29: =B23/A30 -> $589 | C29: =C23/A30 -> $541 | E29: =E23/A30 -> $525 | F29: =F23/A30 -> $517 | H29: =H23/A30 -> $541 | J29: =J23/A30 -> $541
A30: =A25/A29 -> 217
A31: =A27+400 -> $8,400 | B31: =B23/A32 -> $604 | C31: =C23/A32 -> $554 | E31: =E23/A32 -> $538 | F31: =F23/A32 -> $530 | H31: =H23/A32 -> $554 | J31: =J23/A32 -> $554
A32: =A25/A31 -> 212
A33: =A27+600 -> $8,600 | B33: =B23/A34 -> $618 | C33: =C23/A34 -> $567 | E33: =E23/A34 -> $551 | F33: =F23/A34 -> $542 | H33: =H23/A34 -> $567 | J33: =J23/A34 -> $567
A34: =A25/A33 -> 207
A35: =A27+800 -> $8,800 | B35: =B23/A36 -> $632 | C35: =C23/A36 -> $581 | E35: =E23/A36 -> $563 | F35: =F23/A36 -> $555 | H35: =H23/A36 -> $580 | J35: =J23/A36 -> $580
A36: =A25/A35 -> 202
A37: =A27+1000 -> $9,000 | B37: =B23/A38 -> $647 | C37: =C23/A38 -> $594 | E37: =E23/A38 -> $576 | F37: =F23/A38 -> $568 | H37: =H23/A38 -> $593 | J37: =J23/A38 -> $593
A38: =A25/A37 -> 197
A39: =A27+1200 -> $9,200 | B39: =B23/A40 -> $661 | C39: =C23/A40 -> $607 | E39: =E23/A40 -> $589 | F39: =F23/A40 -> $580 | H39: =H23/A40 -> $606 | J39: =J23/A40 -> $607
A40: =A25/A39 -> 193
A41: =A27+1400 -> $9,400 | B41: =B23/A42 -> $676 | C41: =C23/A42 -> $620 | E41: =E23/A42 -> $602 | F41: =F23/A42 -> $593 | H41: =H23/A42 -> $620 | J41: =J23/A42 -> $620
A42: =A25/A41 -> 189
A43: Note:
A44: Loan limits for each program: G-FO - $1,776,000; DDP-FO - $300,150; Joint - $1,200,000; D-FO - $600,000
A45: Total Combination G-FO & D-FO $1,776,000
A47: The Downpayment program may receive up to a 95% guarantee. Loan amount percentages are based on total purchase price.
A48: The bank portion is automatically calculated when the loan limit is exceeded for the FSA and Bank Guaranteed portion.
A49: The interest rate for the bank portion is automatically used from Shared Lien Unguaranteed option.
A51: Particpation Financing loan amount percentages are based on amount financed. This dictates the interest rate on the FSA portion.

Sheet Sheet3
